bitfinex/quotes_BTCUSD_20250719
["timestamp","ask_amount","ask_price","bid_price","bid_amount"]
[1752949500164,0.01062497,117980.0,117970.0,0.41411524]
[1752949500394,0.01910062,117980.0,117970.0,0.42921488]
[1752949501206,0.01810062,117980.0,117970.0,0.42921488]
[1752949501333,0.02665034,117980.0,117970.0,0.42921488]
[1752949501544,0.02565027,117980.0,117970.0,0.42921488]
[1752949501957,0.04260178,117980.0,117970.0,0.42921488]
[1752949502369,0.03405206,117980.0,117970.0,0.42921488]
[1752949502624,0.0255762,117980.0,117970.0,0.42921488]
[1752949502896,0.03405192,117980.0,117970.0,0.42921488]
[1752949503131,0.04252778,117980.0,117970.0,0.42921488]
[1752949503652,0.04252829,117980.0,117970.0,0.42921488]
[1752949504140,0.03405235,117980.0,117970.0,0.42921488]
[1752949504322,0.04252829,117980.0,117970.0,0.42073866]
[1752949504814,0.04252829,117980.0,117970.0,0.23967024]
[1752949505068,0.21204897,117980.0,117970.0,0.42073866]
[1752949505555,0.20357332,117980.0,117970.0,0.42073866]
[1752949507713,0.03405307,117980.0,117970.0,0.42073866]
[1752949507914,0.01710077,117980.0,117970.0,0.51472516]
[1752949508218,0.02557663,117980.0,117970.0,0.51472516]
[1752949508563,0.0171007,117980.0,117970.0,0.33365674]
[1752949508798,0.01710063,117980.0,117970.0,0.51472516]
[1752949509217,0.01710063,117980.0,117970.0,0.52926601]
[1752949509653,0.01710062,117980.0,117970.0,0.52926601]
[1752949509829,0.02557641,117980.0,117970.0,0.52926601]
[1752949510068,0.00862497,117980.0,117970.0,0.52926601]
[1752949510288,0.00014954,117980.0,117970.0,0.34819759]
[1752949510505,0.02557627,117980.0,117970.0,0.52926601]
[1752949511207,0.01710048,117980.0,117970.0,0.34819759]
[1752949511412,0.01710048,117980.0,117970.0,0.52926601]
[1752949511578,0.0255762,117980.0,117970.0,0.52926601]
[1752949511746,0.01710048,117980.0,117970.0,0.52926601]
[1752949512161,0.01710048,117980.0,117970.0,0.34819759]
[1752949512362,0.01710048,117980.0,117970.0,0.55469501]
[1752949513148,0.0255762,117980.0,117970.0,0.55469501]
[1752949513383,0.042528,117980.0,117970.0,0.37362659]
[1752949513584,0.042528,117980.0,117970.0,0.55469501]
[1752949513585,0.2120489,117980.0,117970.0,0.55469501]
[1752949513793,0.04252865,117980.0,117970.0,0.55469501]
[1752949514001,0.03405264,117980.0,117970.0,0.55469501]
[1752949514425,0.03405264,117980.0,117970.0,0.37362659]
[1752949514675,0.03405264,117980.0,117970.0,0.55469501]
[1752949515818,0.0255767,117980.0,117970.0,0.55469501]
[1752949516023,0.19509695,117980.0,117970.0,0.54621879]
[1752949516228,0.03405264,117980.0,117970.0,0.54621879]
[1752949516405,0.03405264,117980.0,117970.0,0.55469501]
[1752949516925,0.0255767,117980.0,117970.0,0.55469501]
[1752949518376,0.03405264,117980.0,117970.0,0.55469501]
[1752949519217,0.2120489,117980.0,117970.0,0.55469501]
[1752949519420,0.2120489,117980.0,117970.0,0.54621879]
[1752949519726,0.20357332,117980.0,117970.0,0.54621879]
[1752949521039,0.20357332,117980.0,117970.0,0.55469501]
[1752949521888,0.20357332,117980.0,117970.0,0.54621879]
[1752949522120,0.20357332,117980.0,117970.0,0.55469501]
[1752949522350,0.03405307,117980.0,117970.0,0.55469501]
[1752949523672,0.02557706,117980.0,117970.0,0.55469501]
[1752949524554,0.19509731,117980.0,117970.0,0.55469501]
[1752949524784,0.20357332,117980.0,117970.0,0.36515037]
[1752949525021,0.20357332,117980.0,117970.0,0.54621879]
[1752949526564,0.20357332,117980.0,117970.0,0.36515037]
[1752949526791,0.20357332,117980.0,117970.0,0.55469501]
[1752949528088,0.20357332,117980.0,117970.0,0.37362659]
[1752949528274,0.20357332,117980.0,117970.0,0.55469501]
[1752949529247,0.20357332,117980.0,117970.0,0.54621879]
[1752949530553,0.20357332,117980.0,117970.0,0.67617879]
[1752949530838,0.20357332,117980.0,117970.0,0.49511037]
[1752949531055,0.20357332,117980.0,117970.0,0.67617879]
[1752949533164,0.20357332,117980.0,117970.0,0.65074979]
[1752949535249,0.20357332,117980.0,117970.0,0.46968137]
[1752949535450,0.20357332,117980.0,117970.0,0.65074979]
[1752949537307,0.03405307,117980.0,117970.0,0.65922601]
[1752949538099,0.20357332,117980.0,117970.0,0.65922601]
[1752949541300,0.03405307,117980.0,117970.0,0.65922601]
[1752949543168,0.02557706,117980.0,117970.0,0.65922601]
[1752949543563,0.01710112,117980.0,117970.0,0.65922601]
[1752949544079,0.02557706,117980.0,117970.0,0.65922601]
[1752949544708,0.19509731,117980.0,117970.0,0.65922601]
[1752949544974,0.20357332,117980.0,117970.0,0.65922601]
[1752949545898,0.02557706,117980.0,117970.0,0.65922601]
[1752949547037,0.19509731,117980.0,117970.0,0.65922601]
[1752949547239,0.20357332,117980.0,117970.0,0.65922601]
[1752949548184,0.20357332,117980.0,117970.0,0.47815759]
[1752949548409,0.20357332,117980.0,117970.0,0.64227349]
[1752949549038,0.20357332,117980.0,117970.0,0.65074979]
[1752949549464,0.20357332,117980.0,117970.0,0.65922601]
[1752949549876,0.20357332,117980.0,117970.0,0.46968137]
[1752949550035,0.20357332,117980.0,117970.0,0.65074979]
[1752949550902,0.03405307,117980.0,117970.0,0.65922601]
[1752949551332,0.20357332,117980.0,117970.0,0.47815759]
[1752949551505,0.20357332,117980.0,117970.0,0.46968137]
[1752949551726,0.20357332,117980.0,117970.0,0.65074979]
[1752949551928,0.20357332,117980.0,117970.0,0.46968137]
[1752949552175,0.20357332,117980.0,117970.0,0.65074979]
[1752949553416,0.1950976,117980.0,117970.0,0.64227349]
[1752949553620,0.1950976,117980.0,117970.0,0.46120507]
[1752949553825,0.1950976,117980.0,117970.0,0.64227349]
[1752949554545,0.1950976,117980.0,117970.0,0.46120507]
[1752949554749,0.1950976,117980.0,117970.0,0.64227349]
[1752949557839,0.1950976,117980.0,117970.0,0.46120507]
[1752949558026,0.1950976,117980.0,117970.0,0.65074979]
[1752949558447,0.1950976,117980.0,117970.0,0.65922601]
[1752949558869,0.1950976,117980.0,117970.0,0.65074979]
[1752949559084,0.18648757,117970.0,117960.0,0.51255705]
[1752949559297,0.20456757,117970.0,117960.0,0.59505733]
[1752949559511,0.0084773,117960.0,117950.0,0.36211983]
[1752949559723,0.18000629,117960.0,117950.0,0.39347169]
[1752949560139,0.18000629,117960.0,117950.0,0.26355169]
[1752949560345,0.17900629,117960.0,117950.0,0.39347169]
[1752949560588,0.17900629,117960.0,117950.0,0.61719957]
[1752949560800,0.17900629,117960.0,117950.0,0.92818799]
[1752949561002,0.17900629,117960.0,117950.0,0.7416687]
[1752949561217,0.17900629,117960.0,117950.0,0.91971002]
[1752949561428,0.18748366,117960.0,117950.0,0.93666598]
[1752949561638,0.19596075,117960.0,117950.0,0.94514371]
[1752949562314,0.02641126,117960.0,117950.0,0.95362137]
[1752949562614,0.01695396,117960.0,117950.0,0.96872137]
[1752949562843,0.02543119,117960.0,117950.0,0.98782137]
[1752949564010,0.03390849,117960.0,117950.0,0.98782137]
[1752949564500,0.03390849,117960.0,117950.0,0.97272137]
[1752949565059,0.21193485,117960.0,117950.0,0.97272137]
[1752949565552,0.21193485,117960.0,117950.0,0.79165295]
[1752949565800,0.21193485,117960.0,117950.0,0.95762137]
[1752949567416,0.19498089,117960.0,117950.0,0.94066598]
[1752949569168,0.20345833,117960.0,117950.0,0.94066598]
[1752949569448,0.20345833,117960.0,117950.0,0.94914371]
[1752949569657,0.0254319,117960.0,117950.0,0.95762137]
[1752949570416,0.01695453,117960.0,117950.0,0.95762137]
[1752949571986,0.0254319,117960.0,117950.0,0.77655295]
[1752949572218,0.20345833,117960.0,117950.0,0.94066591]
[1752949572424,0.0254319,117960.0,117950.0,0.94914357]
[1752949573606,0.20345833,117960.0,117950.0,0.94914357]
[1752949574040,0.20345833,117960.0,117950.0,0.93218818]
[1752949574597,0.1949811,117960.0,117950.0,0.93218818]
[1752949574844,0.1865038,117960.0,117950.0,0.92371023]
[1752949575068,0.1865038,117960.0,117950.0,0.93218832]
[1752949575542,0.17901643,117960.0,117950.0,0.4055487]
[1752949575776,0.17901643,117960.0,117950.0,0.57295207]
[1752949576233,0.17901643,117960.0,117950.0,0.4033487]
[1752949576931,0.19551643,117960.0,117950.0,0.22228028]
[1752949577163,0.20313899,117960.0,117950.0,0.13376]
[1752949577394,0.38420741,117960.0,117950.0,0.13376]
[1752949577624,0.51517741,117960.0,117950.0,0.004]
[1752949577860,0.51517741,117960.0,117950.0,0.002]
[1752949578315,0.17704139,117950.0,117940.0,0.65090842]
[1752949578547,0.17604139,117950.0,117940.0,0.55535028]
[1752949578782,0.17785139,117950.0,117940.0,0.7394287]
[1752949579536,0.17785139,117950.0,117940.0,0.7415887]
[1752949579757,0.17785139,117950.0,117940.0,0.7435887]
[1752949580616,0.17785139,117950.0,117940.0,0.7445887]
[1752949581365,0.17785139,117950.0,117940.0,0.91416645]
[1752949581587,0.18632934,117950.0,117940.0,0.74157677]
[1752949581812,0.18632934,117950.0,117940.0,0.92264519]
[1752949582035,0.18632934,117950.0,117940.0,0.92264533]
[1752949582255,0.17785139,117950.0,117940.0,0.75306758]
[1752949582474,0.2456279,117950.0,117940.0,0.003]
[1752949582707,0.39021981,117950.0,117940.0,0.003]
[1752949583638,0.20915139,117950.0,117940.0,0.003]
[1752949583850,0.39021981,117950.0,117940.0,0.002]
[1752949584450,0.17805649,117940.0,117930.0,0.48421842]
[1752949584651,0.17705649,117940.0,117930.0,0.5718687]
[1752949585630,0.17705649,117940.0,117930.0,0.57536755]
[1752949585834,0.17705649,117940.0,117930.0,0.39429913]
[1752949586044,0.17705649,117940.0,117930.0,0.57536755]
[1752949586980,0.17705649,117940.0,117930.0,0.58384715]
[1752949587194,0.17705649,117940.0,117930.0,0.75343928]
[1752949587407,0.17705649,117940.0,117930.0,0.76983928]
[1752949588316,0.1858054,117940.0,117930.0,0.76983928]
[1752949589794,0.19428407,117940.0,117930.0,0.77831867]
[1752949590006,0.19428407,117940.0,117930.0,0.80219791]
[1752949590007,0.19401404,117940.0,117930.0,0.80219791]
[1752949590240,0.01595741,117940.0,117930.0,0.81067701]
[1752949590446,0.19401404,117940.0,117930.0,0.80219791]
[1752949590681,0.30044337,117950.0,117940.0,0.17805663]
[1752949590939,0.31747111,117950.0,117940.0,0.18811775]
[1752949591163,0.31747111,117950.0,117940.0,0.38081505]
[1752949591399,0.31747111,117950.0,117940.0,0.39621505]
[1752949591627,0.31747111,117950.0,117940.0,0.40469386]
[1752949591854,0.31747111,117950.0,117940.0,0.2266373]
[1752949592103,0.31747111,117950.0,117940.0,0.39621505]
[1752949592326,0.31747111,117950.0,117940.0,0.58576221]
[1752949592742,0.18659111,117950.0,117940.0,0.53557379]
[1752949593086,0.00847788,117950.0,117940.0,0.81910961]
[1752949593290,0.17804125,117950.0,117940.0,0.81910961]
[1752949593690,0.02543377,117950.0,117940.0,0.82758799]
[1752949594061,0.2034753,117950.0,117940.0,0.81910961]
[1752949595349,0.0254337,117950.0,117940.0,0.82758799]
[1752949600185,0.20347516,117950.0,117940.0,0.82758799]
[1752949600771,0.20347516,117950.0,117940.0,0.64651957]
[1752949600984,0.20347516,117950.0,117940.0,0.82758799]
[1752949601380,0.21195332,117950.0,117940.0,0.82758799]
[1752949601540,0.20347552,117950.0,117940.0,0.81910961]
[1752949602329,0.20347552,117950.0,117940.0,0.63804119]
[1752949604476,0.19499764,117950.0,117940.0,0.62956274]
[1752949604903,0.19499764,117950.0,117940.0,0.63804126]
[1752949607048,0.19499764,117950.0,117940.0,0.44001565]
[1752949607267,0.17804153,117950.0,117940.0,0.4027487]
[1752949607477,0.17985153,117950.0,117940.0,0.4027487]
[1752949607885,0.17985153,117950.0,117940.0,0.22168028]
[1752949608033,0.17985153,117950.0,117940.0,0.4027487]
[1752949608429,0.17985153,117950.0,117940.0,0.22168028]
[1752949608636,0.19615153,117950.0,117940.0,0.21607028]
[1752949609278,0.19501375,117940.0,117930.0,0.30364885]
[1752949609492,0.1883453,117940.0,117930.0,0.51971913]
[1752949609940,0.1883453,117940.0,117930.0,0.70078755]
[1752949610479,0.1883453,117940.0,117930.0,0.70178755]
[1752949610908,0.1883453,117940.0,117930.0,0.52171913]
[1752949611147,0.1883453,117940.0,117930.0,0.51856913]
[1752949611757,0.1883453,117940.0,117930.0,0.52165913]
[1752949612403,0.1883453,117940.0,117930.0,0.52370913]
[1752949613313,0.1883453,117940.0,117930.0,0.52270913]
[1752949613588,0.1883453,117940.0,117930.0,0.52170913]
[1752949613793,0.1883453,117940.0,117930.0,0.70277755]
[1752949615558,0.1883453,117940.0,117930.0,0.87236968]
[1752949615759,0.1883453,117940.0,117930.0,0.88084928]
[1752949615973,0.1865353,117940.0,117930.0,0.88084928]
[1752949616177,0.1865353,117940.0,117930.0,0.88932881]
[1752949616484,0.1865353,117940.0,117930.0,0.89780827]
[1752949616711,0.1865353,117940.0,117930.0,0.91400827]
[1752949619019,0.1865353,117940.0,117930.0,0.89704928]
[1752949619245,0.17805663,117940.0,117930.0,0.72745715]
[1752949619525,0.17805663,117940.0,117930.0,0.70277755]
[1752949622546,0.17805663,117940.0,117930.0,0.87236968]
[1752949622676,0.17805663,117940.0,117930.0,0.88084921]
[1752949625219,0.16957775,117940.0,117930.0,0.87236968]
[1752949626165,0.16957775,117940.0,117930.0,0.88084928]
[1752949626590,0.16957775,117940.0,117930.0,0.90552881]
[1752949626802,0.16957775,117940.0,117930.0,0.91400827]
[1752949627646,0.16957775,117940.0,117930.0,0.93040827]
[1752949628171,0.16957775,117940.0,117930.0,0.92192881]
[1752949629299,0.16957775,117940.0,117930.0,0.73537755]
[1752949629509,0.16957775,117940.0,117930.0,0.88856968]
[1752949630676,0.16957775,117940.0,117930.0,0.71897755]
[1752949632580,0.16957775,117940.0,117930.0,0.90552867]
[1752949633241,0.16957775,117940.0,117930.0,0.91400798]
[1752949633457,0.16957775,117940.0,117930.0,0.92910798]
[1752949633678,0.17805663,117940.0,117930.0,0.93758722]
[1752949633894,0.1865353,117940.0,117930.0,0.93758722]
[1752949634076,0.1865353,117940.0,117930.0,0.94606639]
[1752949634494,0.1865353,117940.0,117930.0,0.93758722]
[1752949634667,0.19501361,117940.0,117930.0,0.93758722]
[1752949634879,0.2119713,117940.0,117930.0,0.94606639]
[1752949635283,0.2004213,117940.0,117930.0,0.94606639]
[1752949635722,0.20349285,117940.0,117930.0,0.94606639]
[1752949635891,0.20349285,117940.0,117930.0,0.93758722]
[1752949636092,0.20349285,117940.0,117930.0,0.94606639]
[1752949636502,0.20349285,117940.0,117930.0,0.93758722]
[1752949636706,0.19501418,117940.0,117930.0,0.92910798]
[1752949636914,0.19501418,117940.0,117930.0,0.93758722]
[1752949638310,0.19501418,117940.0,117930.0,0.92910798]
[1752949638533,0.18653544,117940.0,117930.0,0.92910798]
[1752949638981,0.18653544,117940.0,117930.0,0.93758722]
[1752949639205,0.18653544,117940.0,117930.0,0.94606639]
[1752949642858,0.18653544,117940.0,117930.0,0.94606596]
[1752949643709,0.01695741,117940.0,117930.0,0.94606596]
[1752949643966,0.02543572,117940.0,117930.0,0.94606596]
[1752949644316,0.01695698,117940.0,117930.0,0.94606596]
[1752949644520,0.02543572,117940.0,117930.0,0.94606596]
[1752949644926,0.01695698,117940.0,117930.0,0.94606596]
[1752949646058,0.00847838,117940.0,117930.0,0.94606596]
[1752949646272,0.0169569,117940.0,117930.0,0.94606596]
[1752949646682,0.00847838,117940.0,117930.0,0.94606596]
[1752949646916,0.01695683,117940.0,117930.0,0.94606596]
[1752949647519,0.31691948,117950.0,117940.0,0.18653501]
[1752949647749,0.1558732,117950.0,117940.0,0.58955023]
[1752949647962,0.00847752,117950.0,117940.0,0.72499023]
[1752949648173,0.01695518,117950.0,117940.0,0.72499023]
[1752949648540,0.00947752,117950.0,117940.0,0.72499023]
[1752949648752,0.001,117950.0,117940.0,0.81050051]
[1752949648958,0.00947752,117950.0,117940.0,0.81050051]
[1752949649793,0.01795518,117950.0,117940.0,0.81050051]
[1752949649941,0.00947752,117950.0,117940.0,0.81050051]
[1752949650558,0.01047752,117950.0,117940.0,0.81050051]
[1752949650808,0.002,117950.0,117940.0,0.81050051]
[1752949654558,0.01047766,117950.0,117940.0,0.81050051]
[1752949657388,0.00847766,117950.0,117940.0,0.81050051]
[1752949658708,0.34243711,117960.0,117950.0,0.18651919]
[1752949658909,0.34243711,117960.0,117950.0,0.36954761]
[1752949659193,0.34243711,117960.0,117950.0,0.37254761]
[1752949659831,0.34343711,117960.0,117950.0,0.37254761]
[1752949660320,0.34443711,117960.0,117950.0,0.37254761]
[1752949660530,0.21407711,117960.0,117950.0,0.37254761]
[1752949660731,0.21407711,117960.0,117950.0,0.38102527]
[1752949661088,0.34435711,117960.0,117950.0,0.38102527]
[1752949661298,0.34435711,117960.0,117950.0,0.37254761]
[1752949661500,0.34435711,117960.0,117950.0,0.38102534]
[1752949661748,0.34435711,117960.0,117950.0,0.389503]
[1752949662849,0.16632792,117960.0,117950.0,0.389503]
[1752949663065,0.34435428,117960.0,117950.0,0.389503]
[1752949664199,0.17480529,117960.0,117950.0,0.389503]
[1752949664413,0.17480529,117960.0,117950.0,0.20843458]
[1752949664657,0.17480529,117960.0,117950.0,0.389503]
[1752949665513,0.17472529,117960.0,117950.0,0.389503]
[1752949669369,0.01061666,117960.0,117950.0,0.420603]
[1752949669578,0.002,117960.0,117950.0,0.70172255]
[1752949670728,0.002,117960.0,117950.0,0.52065413]
[1752949671433,0.002,117960.0,117950.0,0.70172255]
[1752949672263,0.002,117960.0,117950.0,0.83180255]
[1752949673084,0.002,117960.0,117950.0,0.46966571]
[1752949673216,0.002,117960.0,117950.0,0.83180255]
[1752949676085,0.002,117960.0,117950.0,0.65073413]
[1752949676449,0.002,117960.0,117950.0,0.33958571]
[1752949676660,0.01047687,117960.0,117950.0,0.64217648]
[1752949676869,0.01895388,117960.0,117950.0,0.64217648]
[1752949677069,0.01047687,117960.0,117950.0,0.64217648]
[1752949679320,0.02743097,117960.0,117950.0,0.46114806]
[1752949679536,0.19879039,117960.0,117940.0,0.37422462]
[1752949679786,0.02543327,117950.0,117940.0,0.2666167]
[1752949679987,0.03572129,117950.0,117940.0,0.5094121]
[1752949680446,0.02724327,117950.0,117940.0,0.5198607]
[1752949680670,0.02543327,117950.0,117940.0,0.5198607]
[1752949681125,0.03391122,117950.0,117940.0,0.5198607]
[1752949681361,0.03391122,117950.0,117940.0,0.70092912]
[1752949681588,0.18653508,117940.0,117930.0,0.47857051]
[1752949681802,0.20414508,117940.0,117930.0,0.47857051]
[1752949682043,0.21066663,117940.0,117930.0,0.30049885]
[1752949682902,0.21066663,117940.0,117930.0,0.00149885]
[1752949683115,0.21066663,117940.0,117930.0,0.00249885]
[1752949683771,0.21066663,117940.0,117930.0,0.18057058]
[1752949684193,0.21066663,117940.0,117930.0,0.00249885]
[1752949684442,0.39173505,117940.0,117930.0,0.00249885]
[1752949684655,0.39286505,117940.0,117930.0,0.00249885]
[1752949685085,0.21179663,117940.0,117930.0,0.00249885]
[1752949685407,0.21179663,117940.0,117930.0,0.00149885]
[1752949686376,0.21066663,117940.0,117930.0,0.00149885]
[1752949687296,0.21066663,117940.0,117930.0,0.00049885]
[1752949688966,0.21266663,117940.0,117930.0,0.00049885]
[1752949698461,0.19766663,117940.0,117930.0,0.00049885]
[1752949700358,0.19766663,117940.0,117930.0,0.01374498]
[1752949701402,0.19766663,117940.0,117930.0,0.00049885]
[1752949703531,0.18186663,117940.0,117930.0,0.00049885]
[1752949704447,0.18186663,117940.0,117930.0,0.17009098]
[1752949705154,0.18186663,117940.0,117930.0,0.35118609]
[1752949706469,0.18186663,117940.0,117930.0,0.35966569]
[1752949707600,0.18186663,117940.0,117930.0,0.36288569]
[1752949713139,0.18186663,117940.0,117930.0,0.18179058]
[1752949713354,0.18186663,117940.0,117930.0,0.00371885]
[1752949713563,0.36296174,117940.0,117930.0,0.00371885]
[1752949715326,0.18186663,117940.0,117930.0,0.00371885]
[1752949717118,0.36296174,117940.0,117930.0,0.00371885]
[1752949718847,0.36296174,117940.0,117930.0,0.00049885]
[1752949719584,0.18186663,117940.0,117930.0,0.00049885]
[1752949719790,0.36296174,117940.0,117930.0,0.00049885]
[1752949721249,0.18186663,117940.0,117930.0,0.00049885]
[1752949736530,0.36296174,117940.0,117930.0,0.00049885]
[1752949738459,0.18186663,117940.0,117930.0,0.00049885]
[1752949740303,0.18186663,117940.0,117930.0,0.01639885]
[1752949740639,0.18186663,117940.0,117930.0,0.01956885]
[1752949743005,0.36296174,117940.0,117930.0,0.00049885]
[1752949743288,0.37886174,117940.0,117930.0,0.00049885]
[1752949743478,0.64520836,117940.0,117930.0,0.00049885]
[1752949753400,0.19504661,117920.0,117910.0,0.3928475]
[1752949753600,0.19504661,117920.0,117910.0,0.3948375]
[1752949754123,0.19504661,117920.0,117910.0,0.4100375]
[1752949754575,0.20352693,117920.0,117910.0,0.4110375]
[1752949754792,0.21223018,117920.0,117910.0,0.4110375]
[1752949755000,0.19898288,117920.0,117910.0,0.4120375]
[1752949756127,0.20746313,117920.0,117910.0,0.4120375]
[1752949756325,0.20746313,117920.0,117910.0,0.42051811]
[1752949758505,0.20746313,117920.0,117910.0,0.40355682]
[1752949759161,0.19898331,117920.0,117910.0,0.40355682]
[1752949759952,0.19898331,117920.0,117910.0,0.40355697]
[1752949761621,0.19527033,117920.0,117910.0,0.40355697]
[1752949762437,0.18656708,117920.0,117910.0,0.40355697]
[1752949764654,0.17808683,117920.0,117910.0,0.40355697]
[1752949765817,0.18574919,117920.0,117910.0,0.40355697]
[1752949769761,0.19507689,117920.0,117910.0,0.42051854]
[1752949769890,0.20355707,117920.0,117910.0,0.42899915]
[1752949770091,0.20355707,117920.0,117910.0,0.42051854]
[1752949771400,0.20355707,117920.0,117910.0,0.42899922]
[1752949771813,0.20355707,117920.0,117910.0,0.42899886]
[1752949773686,0.02546995,117920.0,117910.0,0.42899886]
[1752949773902,0.03395013,117920.0,117910.0,0.4289985]
[1752949775107,0.04243009,117920.0,117910.0,0.4289985]
[1752949776384,0.22051685,117920.0,117910.0,0.4289985]
[1752949778146,0.05091034,117920.0,117910.0,0.4289985]
[1752949778366,0.22051685,117920.0,117910.0,0.4289985]
[1752949778996,0.22051685,117920.0,117910.0,0.24790339]
[1752949779233,0.2205175,117920.0,117910.0,0.4289985]
[1752949780758,0.2205175,117920.0,117910.0,0.23942285]
[1752949780979,0.2205175,117920.0,117910.0,0.40355696]
[1752949781126,0.21203761,117920.0,117910.0,0.40355696]
[1752949781329,0.21203761,117920.0,117910.0,0.42051825]
[1752949781529,0.03395078,117920.0,117910.0,0.42051825]
[1752949781739,0.02547053,117920.0,117910.0,0.42899879]
[1752949785670,0.0246225,117920.0,117910.0,0.42899879]
[1752949785999,0.20270933,117920.0,117910.0,0.42899879]
[1752949791898,0.0246225,117920.0,117910.0,0.42899879]
[1752949792791,0.03310275,117920.0,117910.0,0.42899879]
[1752949793214,0.20270926,117920.0,117910.0,0.42899879]
[1752949793425,0.20270926,117920.0,117910.0,0.41203764]
[1752949800427,0.03310275,117920.0,117910.0,0.42051818]
[1752949800842,0.29928512,117930.0,117920.0,0.22724661]
[1752949800843,0.0084791,117930.0,117920.0,0.22724661]
[1752949801051,0.01695856,117930.0,117920.0,0.72111683]
[1752949801273,0.01695856,117930.0,117920.0,0.72423683]
[1752949801472,0.02543773,117930.0,117920.0,0.72423683]
[1752949801699,0.02618289,117940.0,117930.0,0.21875083]
[1752949801909,0.00049854,117940.0,117930.0,0.59142015]
[1752949802116,0.00049854,117940.0,117930.0,0.68005043]
[1752949802373,0.0174553,117940.0,117930.0,0.49895532]
[1752949802571,0.01745523,117940.0,117930.0,0.49895532]
[1752949802983,0.02603844,117940.0,117930.0,0.49895532]
[1752949803832,0.01745523,117940.0,117930.0,0.49895532]
[1752949804044,0.01745523,117940.0,117930.0,0.50095532]
[1752949804377,0.01745523,117940.0,117930.0,0.49995532]
[1752949804778,0.01745523,117940.0,117930.0,0.50095532]
[1752949805731,0.01660735,117940.0,117930.0,0.50095532]
[1752949806338,0.0334493,117940.0,117930.0,0.50095532]
[1752949807268,0.0419279,117940.0,117930.0,0.50095532]
[1752949807721,0.0334493,117940.0,117930.0,0.50095532]
[1752949807935,0.02497078,117940.0,117930.0,0.50095532]
[1752949808139,0.03344938,117940.0,117930.0,0.50095532]
[1752949808829,0.02497078,117940.0,117930.0,0.50095532]
[1752949809049,0.0334493,117940.0,117930.0,0.50095532]
[1752949810295,0.02497078,117940.0,117930.0,0.50095532]
[1752949810727,0.03344923,117940.0,117930.0,0.50095532]
[1752949812727,0.02497078,117940.0,117930.0,0.50095532]
[1752949813912,0.01684167,117940.0,117930.0,0.50095532]
[1752949820642,0.02532005,117940.0,117930.0,0.50095532]
[1752949821378,0.01684167,117940.0,117930.0,0.50095532]
[1752949821873,0.01684167,117940.0,117930.0,0.63055532]
[1752949822443,0.0254337,117950.0,117940.0,0.20349213]
[1752949822693,0.0254337,117950.0,117940.0,0.51944724]
[1752949822924,0.03391179,117950.0,117940.0,0.51944724]
[1752949823144,0.01695525,117950.0,117940.0,0.55064724]
[1752949823418,0.02543313,117950.0,117940.0,0.55064724]
[1752949825152,0.03393972,117950.0,117940.0,0.55064724]
[1752949825333,0.04241774,117950.0,117940.0,0.55064724]
[1752949825599,0.03393972,117950.0,117940.0,0.55064724]
[1752949825787,0.03309183,117950.0,117940.0,0.55064724]
[1752949826107,0.00850659,117950.0,117940.0,0.81725263]
[1752949826297,0.01698418,117950.0,117940.0,0.45506241]
[1752949826530,0.01698418,117950.0,117940.0,0.63615752]
[1752949826531,0.01695532,117950.0,117940.0,0.63615752]
[1752949826755,0.01695532,117950.0,117940.0,0.45506241]
[1752949826983,0.02534991,117950.0,117940.0,0.63615752]
[1752949827401,0.01695532,117950.0,117940.0,0.63615752]
[1752949827617,0.01695525,117950.0,117940.0,0.63615752]
[1752949827834,0.00847752,117950.0,117940.0,0.62767828]
[1752949828034,0.01695511,117950.0,117940.0,0.44658317]
[1752949828193,0.01695511,117950.0,117940.0,0.80877339]
[1752949828531,0.02543284,117950.0,117940.0,0.80877339]
[1752949828747,0.01695511,117950.0,117940.0,0.80877339]
[1752949828953,0.02558053,117950.0,117940.0,0.80877339]
[1752949829096,0.04253621,117950.0,117940.0,0.80877339]
[1752949830442,0.05101423,117950.0,117940.0,0.80877339]
[1752949831860,0.05101423,117950.0,117940.0,0.62767828]
[1752949832265,0.05101423,117950.0,117940.0,0.80877339]
[1752949833974,0.04253621,117950.0,117940.0,0.80877339]
[1752949834195,0.05101423,117950.0,117940.0,0.80029508]
[1752949834442,0.04253621,117950.0,117940.0,0.80029508]
[1752949835357,0.04253614,117950.0,117940.0,0.80029508]
[1752949835589,0.05101416,117950.0,117940.0,0.80029508]
[1752949835789,0.04253614,117950.0,117940.0,0.80029508]
[1752949835997,0.04253614,117950.0,117940.0,0.61919997]
[1752949836439,0.05101416,117950.0,117940.0,0.61919997]
[1752949836844,0.04253614,117950.0,117940.0,0.61919997]
[1752949837068,0.05101416,117950.0,117940.0,0.61919997]
[1752949837551,0.2205781,117950.0,117940.0,0.61920026]
[1752949837771,0.21210051,117950.0,117940.0,0.44658418]
[1752949838013,0.21210051,117950.0,117940.0,0.63615774]
[1752949838436,0.22057867,117950.0,117940.0,0.63615774]
[1752949839685,0.22057867,117950.0,117940.0,0.64463612]
[1752949839946,0.04253714,117950.0,117940.0,0.64463612]
[1752949840185,0.22057867,117950.0,117940.0,0.64463612]
[1752949842706,0.22057867,117950.0,117940.0,0.46354101]
[1752949842916,0.22057867,117950.0,117940.0,0.64463612]
[1752949844124,0.21210094,117950.0,117940.0,0.63615774]
[1752949845062,0.21210094,117950.0,117940.0,0.45506263]
[1752949845291,0.21210094,117950.0,117940.0,0.63615774]
[1752949845915,0.21210094,117950.0,117940.0,0.62767929]
[1752949846842,0.21210094,117950.0,117940.0,0.63615781]
[1752949849220,0.21210094,117950.0,117940.0,0.64463576]
[1752949849442,0.04253757,117950.0,117940.0,0.64463576]
[1752949850645,0.01710308,117950.0,117940.0,0.64463576]
[1752949850857,0.02558088,117950.0,117940.0,0.82573087]
[1752949851067,0.01710308,117950.0,117940.0,0.82573087]
[1752949851492,0.01710301,117950.0,117940.0,0.82573087]
[1752949853111,0.02558074,117950.0,117940.0,0.82573087]
[1752949853736,0.02558067,117950.0,117940.0,0.82573087]
[1752949854157,0.01710301,117950.0,117940.0,0.82573087]
[1752949855245,0.29905503,117970.0,117960.0,0.16954899]
[1752949855481,0.30121954,117970.0,117960.0,0.18010643]
[1752949855670,0.30978697,117970.0,117960.0,0.18317511]
[1752949855918,0.30978697,117970.0,117960.0,0.36120154]
[1752949856144,0.30978697,117970.0,117960.0,0.1885838]
[1752949856362,0.31178697,117970.0,117960.0,0.1885838]
[1752949857563,0.31178697,117970.0,117960.0,0.36967891]
[1752949857798,0.31378697,117970.0,117960.0,0.36967891]
[1752949858005,0.31378697,117970.0,117960.0,0.1885838]
[1752949859234,0.31378697,117970.0,117960.0,0.36967891]
[1752949859508,0.31378697,117970.0,117960.0,0.1970611]
[1752949859755,0.31378697,117970.0,117960.0,0.1885838]
[1752949860418,0.31378697,117970.0,117960.0,0.01055744]
[1752949861417,0.31378697,117970.0,117950.0,0.3504789]
[1752949861662,0.51108208,117970.0,117950.0,0.54852969]
[1752949861871,0.0084773,117960.0,117950.0,0.55700728]
[1752949862078,0.0084773,117960.0,117950.0,0.55908728]
[1752949862490,0.00847723,117960.0,117950.0,0.55908678]
[1752949862914,0.01695439,117960.0,117950.0,0.55908678]
[1752949863132,0.01695417,117960.0,117950.0,0.55908678]